fUSD/lending_fUSD_20260605
["ID","MTS","AMOUNT","RATE_DAILY","PERIOD"]
[424198536,1780647045000,-203.55691112,0.0001488,2]
[424198534,1780647045000,-530.74657936,0.00014878,2]
[424198535,1780647045000,-200.0,0.00014879,2]
[424198522,1780647045000,-150.0,0.00014806,2]
[424198531,1780647045000,-150.0,0.00014866,2]
[424198495,1780647045000,-150.0,0.00014747,2]
[424198537,1780647045000,-150.0,0.00014886,2]
[424198539,1780647045000,-10000.0,0.000149,2]
[424198538,1780647045000,-203.55691112,0.00014895,2]
[424198540,1780647045000,-4947.1099,0.000149,2]
[424198544,1780647045000,-3238.04126973,0.000149,3]
[424198545,1780647045000,-151.0,0.000149,2]
[424198546,1780647045000,-151.0,0.000149,2]
[424198541,1780647045000,-233.87790747,0.000149,2]
[424198543,1780647045000,-17166.97599229,0.000149,2]
[424198542,1780647045000,-25000.0,0.000149,3]
[424198529,1780647045000,-150.0,0.00014865,2]
[424198520,1780647045000,-169.62,0.00014802,2]
[424198533,1780647045000,-150.0,0.00014866,2]
[424198519,1780647045000,-169.62,0.00014802,2]
[424198517,1780647045000,-500.0,0.00014795,2]
[424198490,1780647045000,-150.0,0.00014703,2]
[424198502,1780647045000,-772.8838773,0.00014767,2]
[424198501,1780647045000,-500.0,0.00014766,2]
[424198493,1780647045000,-150.0,0.00014743,2]
[424198497,1780647045000,-758.96739485,0.00014757,2]
[424198500,1780647045000,-670.46851618,0.00014766,2]
[424198498,1780647045000,-203.55691112,0.00014759,2]
[424198499,1780647045000,-300.0,0.00014766,2]
[424198496,1780647045000,-150.0,0.00014747,2]
[424198504,1780647045000,-200.0,0.00014773,2]
[424198506,1780647045000,-150.0,0.00014784,2]
[424198494,1780647045000,-203.55691112,0.00014744,2]
[424198513,1780647045000,-165.88679775,0.00014795,2]
[424198518,1780647045000,-500.0,0.00014795,2]
[424198515,1780647045000,-500.0,0.00014795,2]
[424198516,1780647045000,-500.0,0.00014795,2]
[424198511,1780647045000,-218.70520512,0.00014795,2]
[424198509,1780647045000,-500.0,0.00014795,2]
[424198507,1780647045000,-150.0,0.00014786,2]
[424198508,1780647045000,-203.55691112,0.0001479,2]
[424198510,1780647045000,-150.0,0.00014795,2]
[424198505,1780647045000,-203.55691112,0.00014774,2]
[424198514,1780647045000,-500.0,0.00014795,2]
[424198503,1780647045000,-232208.6375284,0.00014767,2]
[424198569,1780647046000,-51812.7504795,0.0001494,2]
[424198565,1780647046000,-151.0,0.0001494,2]
[424198567,1780647046000,-250.0,0.0001494,2]
[424198570,1780647046000,-203.55691112,0.00014941,2]
[424198560,1780647046000,-203.55691112,0.00014926,2]
[424198568,1780647046000,-172.4537033,0.0001494,2]
[424198574,1780647046000,-9776.6889654,0.00014952,2]
[424198573,1780647046000,-500.0,0.00014951,2]
[424198571,1780647046000,-150.0,0.00014946,2]
[424198575,1780647046000,-983.8172033,0.00014952,2]
[424198572,1780647046000,-2000.0,0.0001495,2]
[424198577,1780647046000,-613.0,0.00014959,2]
[424198556,1780647046000,-4071.20657997,0.000149,2]
[424198566,1780647046000,-151.0,0.0001494,2]
[424198554,1780647046000,-2000.0,0.000149,2]
[424198549,1780647046000,-983.012832,0.000149,2]
[424198557,1780647046000,-150.0,0.00014905,2]
[424198561,1780647046000,-150.0,0.00014926,2]
[424198563,1780647046000,-151.0,0.0001494,2]
[424198552,1780647046000,-151.0,0.000149,2]
[424198587,1780647046000,-150.32951387,0.00014986,2]
[424198559,1780647046000,-203.55691112,0.00014911,2]
[424198564,1780647046000,-151.0,0.0001494,2]
[424198555,1780647046000,-157.975636,0.000149,2]
[424198558,1780647046000,-2275.54283785,0.00014907,2]
[424198553,1780647046000,-151.0,0.000149,2]
[424198551,1780647046000,-983.012832,0.000149,2]
[424198550,1780647046000,-983.012832,0.000149,2]
[424198548,1780647046000,-983.012832,0.000149,2]
[424198547,1780647046000,-250.0319068,0.000149,2]
[424198562,1780647046000,-150.0,0.00014926,2]
[424198588,1780647046000,-150.0,0.00014986,2]
[424198603,1780647046000,-500.0,0.00014999,2]
[424198579,1780647046000,-203.55691112,0.00014971,2]
[424198605,1780647046000,-500.0,0.00014999,2]
[424198608,1780647046000,-500.0,0.00014999,2]
[424198616,1780647046000,-377129.36878408,0.00015,2]
[424198604,1780647046000,-386.82400011,0.00014999,2]
[424198606,1780647046000,-540.02127567,0.00014999,2]
[424198602,1780647046000,-500.0,0.00014999,2]
[424198615,1780647046000,-431.20425644,0.00014999,2]
[424198611,1780647046000,-500.0,0.00014999,2]
[424198613,1780647046000,-500.0,0.00014999,2]
[424198609,1780647046000,-500.0,0.00014999,2]
[424198599,1780647046000,-2275.54283785,0.00014995,2]
[424198598,1780647046000,-530.74657936,0.00014992,2]
[424198592,1780647046000,-150.0,0.00014986,2]
[424198600,1780647046000,-151.0,0.00014997,2]
[424198596,1780647046000,-1000.0,0.0001499,2]
[424198576,1780647046000,-203.55691112,0.00014956,2]
[424198590,1780647046000,-150.0,0.00014986,2]
[424198594,1780647046000,-1000.0,0.0001499,2]
[424198580,1780647046000,-2181.4741745,0.00014982,2]
[424198582,1780647046000,-150.0,0.00014985,2]
[424198581,1780647046000,-393.69,0.00014985,2]
[424198585,1780647046000,-150.0,0.00014986,2]
[424198583,1780647046000,-150.0,0.00014986,2]
[424198586,1780647046000,-150.0,0.00014986,2]
[424198578,1780647046000,-826.0,0.00014959,2]
[424198591,1780647046000,-203.55691112,0.00014986,2]
[424198601,1780647046000,-500.0,0.00014999,2]
[424198597,1780647046000,-758.96739485,0.0001499,2]
[424198593,1780647046000,-486.7526819,0.00014988,2]
[424198595,1780647046000,-250.0,0.0001499,2]
[424198589,1780647046000,-150.0,0.00014986,2]
[424198584,1780647046000,-150.24681016,0.00014986,2]
[424198627,1780647047000,-395.16,0.00015,2]
[424198626,1780647047000,-728.11,0.00015,2]
[424198629,1780647047000,-628.26271996,0.00015,2]
[424198628,1780647047000,-1823.04031734,0.00015,2]
[424198631,1780647047000,-728.83,0.00015,2]
[424198630,1780647047000,-395.25999999,0.00015,2]
[424198633,1780647047000,-600.0,0.00012137,2]
[424198634,1780647047000,-527.50353436,0.00012137,2]
[424198636,1780647047000,-710.6345931,0.00012137,2]
[424198635,1780647047000,-1560.56804355,0.00012137,2]
[424198632,1780647047000,-404.26499995,0.00015,2]
[424198638,1780647048000,-17936.3026723,0.00012137,2]
[424198637,1780647048000,-2451.5813908,0.00012137,2]
[424198639,1780647048000,-166.54710976,0.00013698,2]
[424198643,1780647048000,-864.15,0.00015,2]
[424198641,1780647048000,-9351.49467358,0.00015,2]
[424198640,1780647048000,-59620.03206667,0.00015,2]
[424198644,1780647048000,-2639.13357773,0.00015,2]
[424198642,1780647048000,-1041.45,0.00015,2]
[424198645,1780647064000,-2970.63275294,0.0001269,2]
[424198646,1780647079000,-152.0,9.711e-05,2]
[424198647,1780647133000,-500.0,9.929e-05,2]
[424198649,1780647133000,-2244.0,9.929e-05,2]
[424198648,1780647133000,-3579.30720516,9.929e-05,2]
[424198650,1780647133000,-1950.0,9.929e-05,2]
[424198652,1780647133000,-1827.0,9.929e-05,2]
[424198657,1780647133000,-1994.73055453,9.929e-05,2]
[424198653,1780647133000,-2596.15729148,9.929e-05,2]
[424198655,1780647133000,-2023.92518656,9.929e-05,2]
[424198654,1780647133000,-2519.93018299,9.929e-05,2]
[424198656,1780647133000,-2295.85663841,9.929e-05,2]
[424198651,1780647133000,-2368.80328783,9.929e-05,2]
[424198661,1780647134000,-3579.30720516,9.929e-05,2]
[424198660,1780647134000,-1945.21077288,9.929e-05,2]
[424198658,1780647134000,-3287.51776081,9.929e-05,2]
[424198659,1780647134000,-3579.30720516,9.929e-05,2]
[424198662,1780647151000,-500.0,9.929e-05,2]
[424198663,1780647171000,-513.75265628,9.929e-05,2]
[424198664,1780647186000,-513.75265628,9.929e-05,2]
[424198665,1780647202000,-513.75265628,9.929e-05,2]
[424198666,1780647217000,-301.33133822,9.928e-05,2]
[424198667,1780647218000,-5000.0,9.929e-05,2]
[424198668,1780647222000,-178.73941915,9.129e-05,2]
[424198670,1780647222000,-180.071,9.73e-05,2]
[424198671,1780647222000,-1146.609,9.73e-05,2]
[424198672,1780647222000,-3301.8765531,9.929e-05,2]
[424198669,1780647222000,-192.70402775,9.129e-05,2]
[424198673,1780647241000,-500.0,9.928e-05,2]
[424198677,1780647242000,-3000.0,9.929e-05,2]
[424198675,1780647242000,-500.0,9.928e-05,2]
[424198674,1780647242000,-500.0,9.928e-05,2]
[424198676,1780647242000,-500.0,9.928e-05,2]
[424198678,1780647270000,-443.077,9.928e-05,2]
[424198680,1780647274000,-345.71353324,9.928e-05,2]
[424198681,1780647274000,-193.0,9.928e-05,2]
[424198679,1780647274000,-56.923,9.928e-05,2]
[424198682,1780647275000,-1687.09666637,9.928e-05,2]
[424198683,1780647275000,-2717.26680039,9.929e-05,2]
[424198685,1780647281000,-4500.0,9.929e-05,2]
[424198684,1780647281000,-500.0,9.928e-05,2]
[424198687,1780647330000,-500.0,9.927e-05,2]
[424198686,1780647330000,-500.0,9.927e-05,2]
[424198690,1780647330000,-500.0,9.927e-05,2]
[424198689,1780647330000,-500.0,9.927e-05,2]
[424198688,1780647330000,-500.0,9.927e-05,2]
[424198695,1780647331000,-910.16692659,9.928e-05,2]
[424198694,1780647331000,-195.93021945,9.928e-05,2]
[424198692,1780647331000,-500.0,9.928e-05,2]
[424198691,1780647331000,-644.54884539,9.927e-05,2]
[424198693,1780647331000,-249.35400857,9.928e-05,2]
[424198696,1780647332000,16344.85645248,0.0003,120]
[424198698,1780647335000,-300.0,9.928e-05,2]
[424198697,1780647335000,-289.83307341,9.928e-05,2]
[424198699,1780647335000,-150.0,9.928e-05,2]
[424198701,1780647335000,-3960.16692659,9.929e-05,2]
[424198700,1780647335000,-300.0,9.928e-05,2]
[424198703,1780647347000,248.2,0.00030107,120]
[424198705,1780647385000,-261.14165311,9.928e-05,2]
[424198706,1780647385000,-4094.40259521,9.929e-05,2]
[424198704,1780647385000,-548.74165168,9.927e-05,2]
[424198710,1780647490000,-4850.0,9.929e-05,2]
[424198709,1780647490000,-150.0,9.928e-05,2]
[424198711,1780647497000,-5000.0,9.929e-05,2]
[424198712,1780647498000,-5000.0,9.929e-05,2]
[424198713,1780647498000,-5000.0,9.929e-05,2]
[424198714,1780647499000,-5000.0,9.929e-05,2]
[424198715,1780647500000,-5000.0,9.929e-05,2]
[424198717,1780647501000,-436.4714351,9.929e-05,2]
[424198716,1780647501000,-4563.5285649,9.929e-05,2]
[424198718,1780647502000,-5000.0,9.929e-05,2]
[424198719,1780647508000,-5000.0,9.929e-05,2]
[424198721,1780647522000,-5000.0,9.929e-05,2]
[424198720,1780647522000,-500.0,9.929e-05,2]
[424198723,1780647523000,-5000.0,9.929e-05,2]
[424198722,1780647523000,-5000.0,9.929e-05,2]
[424198724,1780647544000,-500.0,9.929e-05,2]
[424198725,1780647560000,-398.0,9.829e-05,2]
[424198727,1780647561000,162.0,8e-05,2]
[424198728,1780647561000,77.40111,8e-05,2]
[424198726,1780647561000,172.26173498,8e-05,2]
[424198729,1780647576000,-398.0,9.829e-05,2]
[424198732,1780647577000,-5000.0,9.829e-05,2]
[424198731,1780647577000,-5000.0,9.829e-05,2]
[424198730,1780647577000,-5000.0,9.829e-05,2]
[424198734,1780647592000,-598.82144832,9.829e-05,2]
[424198733,1780647592000,-5000.0,9.829e-05,2]
[424198736,1780647608000,-5000.0,9.829e-05,2]
[424198735,1780647608000,-598.82144832,9.829e-05,2]
[424198737,1780647624000,-1200.0,9.828e-05,2]
[424198738,1780647641000,905.9,0.00030136,120]
[424198739,1780647676000,-205.0,9.8e-05,2]
[424198740,1780647680000,-267.59818152,9.814e-05,2]
[424198743,1780647680000,-500.0,9.828e-05,2]
[424198741,1780647680000,-256.52231296,9.828e-05,2]
[424198744,1780647680000,-182.79915717,9.828e-05,2]
[424198745,1780647680000,-11.36851025,9.828e-05,2]
[424198742,1780647680000,-576.7118381,9.828e-05,2]
[424198748,1780647699000,-500.0,9.828e-05,2]
[424198752,1780647699000,-500.0,9.828e-05,2]
[424198755,1780647699000,-2227.17983219,9.829e-05,2]
[424198753,1780647699000,-150.0,9.828e-05,2]
[424198751,1780647699000,-268.26472024,9.828e-05,2]
[424198749,1780647699000,-500.0,9.828e-05,2]
[424198750,1780647699000,-500.0,9.828e-05,2]
[424198747,1780647699000,-278.84970152,9.828e-05,2]
[424198754,1780647699000,-161.70574605,9.828e-05,2]
[424198756,1780647730000,-371.35857559,9.465e-05,2]
[424198758,1780647730000,-179.36076923,9.647e-05,2]
[424198757,1780647730000,-1386.65142441,9.465e-05,2]
[424198759,1780647731000,-202.98780636,9.829e-05,2]
[424198760,1780647745000,-371.35857559,9.829e-05,2]
[424198762,1780647870000,161.01,0.00028767,120]
[424198766,1780647919000,-323.46468938,9.029e-05,2]
[424198764,1780647919000,-221.25097132,9.029e-05,2]
[424198765,1780647919000,-196.90524093,9.029e-05,2]
[424198763,1780647919000,-191.37909837,9.029e-05,2]
[424198767,1780647965000,150.0,0.000301,120]
[424198779,1780648035000,-150.0,9.389e-05,2]
[424198778,1780648035000,-209.66,9.365e-05,2]
[424198777,1780648035000,-150.0,9.299e-05,2]
[424198773,1780648035000,-2312.92,9.072e-05,2]
[424198771,1780648035000,-190.2879669,9.029e-05,2]
[424198775,1780648035000,-150.0,9.118e-05,2]
[424198770,1780648035000,-199.30139148,9.029e-05,2]
[424198774,1780648035000,-1120.81,9.079e-05,2]
[424198772,1780648035000,-161.70574604,9.029e-05,2]
[424198768,1780648035000,-1254.06,9.023e-05,2]
[424198769,1780648035000,-233.70869847,9.028e-05,2]
[424198776,1780648035000,-150.0,9.209e-05,2]
[424198780,1780648035000,-2536.97,9.422e-05,2]
[424198791,1780648035000,-500.0,9.925e-05,2]
[424198782,1780648035000,-150.0,9.479e-05,2]
[424198795,1780648035000,-15785.12075936,9.929e-05,2]
[424198792,1780648035000,-1000.0,9.928e-05,2]
[424198788,1780648035000,-4009.2347,9.829e-05,2]
[424198794,1780648035000,-1000.0,9.928e-05,2]
[424198789,1780648035000,-14642.4981,9.829e-05,2]
[424198793,1780648035000,-1000.0,9.928e-05,2]
[424198790,1780648035000,-250.0,9.925e-05,2]
[424198785,1780648035000,-1200.0,9.828e-05,2]
[424198783,1780648035000,-168.0,9.57e-05,2]
[424198786,1780648035000,-150.0,9.828e-05,2]
[424198784,1780648035000,-300.0,9.828e-05,2]
[424198787,1780648035000,-1317.6314,9.829e-05,2]
[424198781,1780648035000,-250.0,9.429e-05,2]
[424198797,1780648123000,-1000.0,0.0001611,15]
[424198796,1780648123000,-4535.98,9.863e-05,2]
[424198799,1780648141000,2000.0,0.00030135,120]
[424198798,1780648141000,817.17,0.00030082,120]
[424198800,1780648176000,-1089.05545827,9.829e-05,2]
[424198801,1780648191000,-38335.02322921,9.829e-05,2]
[424198802,1780648191000,1893.36669255,9.829e-05,9]
[424198803,1780648207000,-30100.30491252,9.829e-05,2]
[424198804,1780648212000,-205.52,8.968e-05,2]
[424198853,1780648232000,-24625.15,0.00010129,2]
[424198834,1780648232000,-527.49768427,0.0001,2]
[424198835,1780648232000,-550.23948953,0.0001,2]
[424198836,1780648232000,-551.64250455,0.0001,2]
[424198842,1780648232000,-2000.0,0.00010029,2]
[424198841,1780648232000,-4000.0,0.00010027,2]
[424198844,1780648232000,-163.61,0.00010029,2]
[424198839,1780648232000,-204.89368886,0.0001,2]
[424198838,1780648232000,-45.13821794,0.0001,2]
[424198843,1780648232000,-1241.0198,0.00010029,2]
[424198840,1780648232000,-150.0,0.0001,2]
[424198845,1780648232000,-263.0336058,0.000101,2]
[424198847,1780648232000,-4947.1099,0.00010129,2]
[424198854,1780648232000,-24999.99,0.00010129,2]
[424198849,1780648232000,-299.99,0.00010129,2]
[424198852,1780648232000,-353.69,0.00010129,2]
[424198837,1780648232000,-453.46994917,0.0001,2]
[424198833,1780648232000,-1352.82753422,0.0001,2]
[424198822,1780648232000,-154.66874875,9.929e-05,2]
[424198827,1780648232000,-248.47580526,0.0001,2]
[424198817,1780648232000,-250.0,9.896e-05,2]
[424198814,1780648232000,-708.0,9.828e-05,2]
[424198816,1780648232000,-193.0,9.865e-05,2]
[424198815,1780648232000,-184.0,9.828e-05,2]
[424198820,1780648232000,-444.4535,9.929e-05,2]
[424198821,1780648232000,-216.3798112,9.929e-05,2]
[424198818,1780648232000,-270.08314433,9.916e-05,2]
[424198832,1780648232000,-687.69603829,0.0001,2]
[424198819,1780648232000,-1044.42625668,9.928e-05,2]
[424198824,1780648232000,-999.99,9.962e-05,2]
[424198825,1780648232000,-248.47580526,0.0001,2]
[424198830,1780648232000,-1180.83750259,0.0001,2]
[424198829,1780648232000,-379.8916561,0.0001,2]
[424198826,1780648232000,-248.47580526,0.0001,2]
[424198828,1780648232000,-818.83861461,0.0001,2]
[424198823,1780648232000,-200.0,9.962e-05,2]
[424198851,1780648232000,-150.99,0.00010129,2]
[424198850,1780648232000,-3391.61,0.00010129,2]
[424198831,1780648232000,-6756.02940734,0.0001,2]
[424198858,1780648232000,-1519.42,0.00010129,2]
[424198880,1780648232000,-500.0,0.00010626,2]
[424198882,1780648232000,-936022.0932517,0.000107,2]
[424198883,1780648232000,-80179.8879592,0.000107,2]
[424198884,1780648232000,-98152.09988997,0.000107,2]
[424198888,1780648232000,-193.0,0.0001085,2]
[424198898,1780648232000,-5095.2406256,0.000109,2]
[424198894,1780648232000,-1745.93,0.000109,2]
[424198881,1780648232000,-211.1420576,0.00010679,2]
[424198890,1780648232000,-601.02603987,0.0001085,2]
[424198887,1780648232000,-4000.0,0.0001085,2]
[424198892,1780648232000,-19816.59,0.000109,2]
[424198891,1780648232000,-300.0,0.0001085,2]
[424198893,1780648232000,-9999.99,0.000109,2]
[424198897,1780648232000,-10158.86,0.000109,2]
[424198896,1780648232000,-16569.48,0.000109,2]
[424198860,1780648232000,-1103.97,0.00010129,2]
[424198889,1780648232000,-250.0,0.0001085,2]
[424198886,1780648232000,-4000.0,0.00010779,2]
[424198895,1780648232000,-2600.34,0.000109,2]
[424198885,1780648232000,-73403.62731252,0.000107,2]
[424198856,1780648232000,-13434.42,0.00010129,2]
[424198879,1780648232000,-500.0,0.00010626,2]
[424198874,1780648232000,-500.0,0.00010626,2]
[424198862,1780648232000,-1560.56,0.00010223,2]
[424198873,1780648232000,-165.88679775,0.00010626,2]
[424198865,1780648232000,-4000.0,0.00010278,2]
[424198871,1780648232000,-218.70520512,0.00010626,2]
[424198869,1780648232000,-196.34132809,0.00010626,2]
[424198872,1780648232000,-500.0,0.00010626,2]
[424198868,1780648232000,-150.0,0.00010626,2]
[424198875,1780648232000,-500.0,0.00010626,2]
[424198864,1780648232000,-792.42,0.00010223,2]
[424198870,1780648232000,-150.0,0.00010626,2]
[424198867,1780648232000,-4000.0,0.00010529,2]
[424198876,1780648232000,-500.0,0.00010626,2]
[424198877,1780648232000,-500.0,0.00010626,2]
[424198878,1780648232000,-500.0,0.00010626,2]
[424198866,1780648232000,-150.0,0.00010278,2]
[424198904,1780648240000,-500.0,9.763e-05,2]
[424198908,1780648240000,-479.56561907,9.999e-05,2]
[424198906,1780648240000,-262.71675505,9.999e-05,2]
[424198905,1780648240000,-245.94632089,9.999e-05,2]
[424198959,1780648241000,-1000.0,0.00011492,2]
[424198966,1780648241000,-10626.41,0.00012087,2]
[424198965,1780648241000,-4589.85130044,0.00012002,2]
[424198962,1780648241000,-672.52993394,0.0001189,2]
[424198967,1780648241000,-166.66,0.00012103,2]
[424198969,1780648241000,-817.17,0.00012329,2]
[424198964,1780648241000,-18175.59615917,0.00011977,2]
[424198961,1780648241000,-18175.59615917,0.00011619,2]
[424198958,1780648241000,-4589.85130044,0.00011278,2]
[424198963,1780648241000,-21268.00144198,0.00011977,2]
[424198968,1780648241000,-164.84,0.00012263,2]
[424198960,1780648241000,-21268.00144198,0.00011619,2]
[424198970,1780648241000,-426.32474976,0.00012329,2]
[424198978,1780648241000,-440.0,0.00012658,2]
[424198972,1780648241000,-150.52165905,0.00012329,2]
[424198981,1780648241000,-4589.85130044,0.00012727,2]
[424198976,1780648241000,-311.78240267,0.000125,2]
[424198971,1780648241000,-186.18115721,0.00012329,2]
[424198974,1780648241000,-18175.59615917,0.00012335,2]
[424198982,1780648241000,-211.14205758,0.0001279,2]
[424198975,1780648241000,-250.0319068,0.00012365,2]
[424198979,1780648241000,-21268.00144198,0.00012693,2]
[424198977,1780648241000,-166.66,0.00012503,2]
[424198980,1780648241000,-18175.59615917,0.00012693,2]
[424198983,1780648241000,-215.77576141,0.00012792,2]
[424198985,1780648241000,-166.66,0.00012902,2]
[424198957,1780648241000,-500.0,0.00011265,2]
[424198973,1780648241000,-21268.00144198,0.00012335,2]
[424198947,1780648241000,-21268.00144198,0.00011099,2]
[424198919,1780648241000,-9999.99,0.000109,2]
[424198956,1780648241000,-18175.59615917,0.00011261,2]
[424198986,1780648241000,-426.32474976,0.00012938,2]
[424198913,1780648241000,-500.0,0.00010626,2]
[424198917,1780648241000,-4904.7493744,0.000109,2]
[424198909,1780648241000,-500.0,9.999e-05,2]
[424198911,1780648241000,-573.68123455,9.999e-05,2]
[424198915,1780648241000,-545.89240974,0.0001069,2]
[424198910,1780648241000,-500.0,9.999e-05,2]
[424198912,1780648241000,-537.12404971,9.999e-05,2]
[424198929,1780648241000,-4589.85130044,0.000109,2]
[424198921,1780648241000,-499.99,0.000109,2]
[424198923,1780648241000,-9999.99,0.000109,2]
[424198934,1780648241000,-150.0,0.00010959,2]
[424198938,1780648241000,-153.35,0.00010965,2]
[424198951,1780648241000,-18175.59615917,0.00011099,2]
[424198931,1780648241000,-500.0,0.000109,2]
[424198925,1780648241000,-7224.23,0.000109,2]
[424198936,1780648241000,-150.0,0.00010959,2]
[424198940,1780648241000,-2244.72968379,0.00011,2]
[424198942,1780648241000,-4000.0,0.0001103,2]
[424198944,1780648241000,-21268.00144198,0.00011099,2]
[424198952,1780648241000,-749.38,0.00011145,2]
[424198946,1780648241000,-21268.00144198,0.00011099,2]
[424198948,1780648241000,-18175.59615923,0.00011099,2]
[424198954,1780648241000,-150.0,0.00011233,2]
[424198953,1780648241000,-416.12,0.00011215,2]
[424198945,1780648241000,-21268.00144198,0.00011099,2]
[424198955,1780648241000,-21268.00144198,0.00011261,2]
[424198949,1780648241000,-18175.59615917,0.00011099,2]
[424198927,1780648241000,-4589.85130049,0.000109,2]
[424198987,1780648241000,-250.0,0.00012987,2]
[424198950,1780648241000,-18175.59615917,0.00011099,2]
[424198995,1780648241000,-300.0,0.00013141,2]
[424199022,1780648241000,-500.0,0.00013142,2]
[424199032,1780648241000,-500.0,0.00013142,2]
[424199021,1780648241000,-500.0,0.00013142,2]
[424199023,1780648241000,-500.0,0.00013142,2]
[424199031,1780648241000,-500.0,0.00013142,2]
[424199030,1780648241000,-500.0,0.00013142,2]
[424199024,1780648241000,-500.0,0.00013142,2]
[424199025,1780648241000,-500.0,0.00013142,2]
[424199028,1780648241000,-500.0,0.00013142,2]
[424199029,1780648241000,-500.0,0.00013142,2]
[424199027,1780648241000,-500.0,0.00013142,2]
[424199026,1780648241000,-500.0,0.00013142,2]
[424199034,1780648241000,-500.0,0.00013142,2]
[424199018,1780648241000,-500.0,0.00013142,2]
[424199044,1780648241000,-500.0,0.00013142,2]
[424199041,1780648241000,-500.0,0.00013142,2]
[424199040,1780648241000,-500.0,0.00013142,2]
[424199037,1780648241000,-500.0,0.00013142,2]
[424199038,1780648241000,-500.0,0.00013142,2]
[424199033,1780648241000,-500.0,0.00013142,2]
[424199039,1780648241000,-500.0,0.00013142,2]
[424199036,1780648241000,-500.0,0.00013142,2]
[424199042,1780648241000,-500.0,0.00013142,2]
[424199046,1780648241000,-500.0,0.00013142,2]
[424199048,1780648241000,-500.0,0.00013142,2]
[424199045,1780648241000,-500.0,0.00013142,2]
[424199047,1780648241000,-500.0,0.00013142,2]
[424198993,1780648241000,-323.11658767,0.00013051,2]
[424199035,1780648241000,-500.0,0.00013142,2]
[424199050,1780648241000,-500.0,0.00013142,2]
[424199043,1780648241000,-500.0,0.00013142,2]
[424199013,1780648241000,-500.0,0.00013142,2]
[424199016,1780648241000,-500.0,0.00013142,2]
[424198994,1780648241000,-545.89240974,0.00013132,2]
[424198984,1780648241000,-944.890318,0.0001288,2]
[424198990,1780648241000,-1441.54571762,0.00013,2]
[424198988,1780648241000,-749.27266271,0.00012995,2]
[424198992,1780648241000,-18175.59615917,0.00013051,2]
[424198991,1780648241000,-21268.00144198,0.00013051,2]
[424198996,1780648241000,-670.46851618,0.00013141,2]
[424198997,1780648241000,-150.0,0.00013142,2]
[424198999,1780648241000,-302.46,0.00013142,2]
[424199008,1780648241000,-500.0,0.00013142,2]
[424199007,1780648241000,-500.0,0.00013142,2]
[424199000,1780648241000,-357.3671277,0.00013142,2]
[424199001,1780648241000,-154.330341,0.00013142,2]
[424198998,1780648241000,-213.0,0.00013142,2]
[424199011,1780648241000,-500.0,0.00013142,2]
[424199017,1780648241000,-500.0,0.00013142,2]
[424199003,1780648241000,-500.0,0.00013142,2]
[424199015,1780648241000,-500.0,0.00013142,2]
[424199014,1780648241000,-500.0,0.00013142,2]
[424199012,1780648241000,-500.0,0.00013142,2]
[424199009,1780648241000,-500.0,0.00013142,2]
[424199020,1780648241000,-500.0,0.00013142,2]
[424199010,1780648241000,-500.0,0.00013142,2]
[424199006,1780648241000,-500.0,0.00013142,2]
[424199005,1780648241000,-500.0,0.00013142,2]
[424199004,1780648241000,-500.0,0.00013142,2]
[424199002,1780648241000,-500.0,0.00013142,2]
[424199019,1780648241000,-500.0,0.00013142,2]
[424199074,1780648242000,-202.414943,0.00013335,2]
[424199064,1780648242000,-983.012832,0.00013142,2]
[424199069,1780648242000,-150.0,0.00013171,2]
[424199071,1780648242000,-166.66,0.00013302,2]
[424199072,1780648242000,-150.52165905,0.00013304,2]
[424199075,1780648242000,-1986.0,0.00013393,5]
[424199076,1780648242000,-164.962334,0.00013424,2]
[424199078,1780648242000,-150.0,0.00013488,2]
[424199077,1780648242000,-4589.85130044,0.00013451,2]